bitfinex/quotes_ETHUSD_20240719
["timestamp","ask_amount","ask_price","bid_price","bid_amount"]
[1721403292273,0.45443804,3450.6,3449.9,0.634753]
[1721403292615,0.45443804,3450.6,3449.7,2.89879]
[1721403292751,0.45443804,3450.6,3449.8,0.55]
[1721403293096,0.45443804,3450.6,3449.5,2.89896]
[1721403293250,0.45443804,3450.6,3449.6,0.55]
[1721403293450,0.45443804,3450.6,3449.6,3.44887]
[1721403293685,0.45443804,3450.6,3449.7,0.344887]
[1721403294616,0.45443804,3450.6,3449.8,2.89871]
[1721403294787,0.45443804,3450.6,3450.1,2.89845]
[1721403294983,0.45443804,3450.6,3450.0,2.89854]
[1721403295295,0.45443804,3450.6,3450.1,0.55]
[1721403295702,0.45443804,3450.6,3450.2,0.344859]
[1721403296068,0.45443804,3450.6,3449.7,0.344887]
[1721403296282,0.45443804,3450.6,3449.4,3.0]
[1721403296478,0.45443804,3450.6,3449.8,2.89868]
[1721403296711,0.45443804,3450.6,3449.9,5.34152]
[1721403297214,0.45443804,3450.6,3450.0,0.05796238]
[1721403297510,0.45443804,3450.6,3449.9,2.4429]
[1721403297511,0.45443804,3450.6,3450.1,6.53145]
[1721403297729,3.0,3451.4,3450.2,1.187296]
[1721403297876,5.2605,3451.5,3450.3,0.55]
[1721403298685,2.2605,3451.5,3450.3,0.55]
[1721403299012,2.89739,3451.4,3450.3,0.55]
[1721403299198,2.89739,3451.4,3450.1,0.55]
[1721403299398,2.2605,3451.5,3449.6,3.633]
[1721403299399,2.89771,3451.0,3449.6,3.633]
[1721403299583,2.89771,3451.0,3449.7,3.882846]
[1721403299788,2.89747,3451.3,3449.7,6.781626]
[1721403300611,2.89739,3451.4,3450.0,2.89853]
[1721403300816,2.89745,3451.3,3450.1,0.55]
[1721403300973,2.89754,3451.2,3449.8,3.44867]
[1721403301179,2.89754,3451.2,3449.9,1.0964516]
[1721403301406,3.1600115,3451.5,3449.7,3.882846]
[1721403301407,2.89809,3450.6,3449.7,0.882846]
[1721403301606,2.89788,3450.8,3449.2,0.9693567]
[1721403301607,2.89788,3450.8,3449.3,2.89913]
[1721403301780,2.89788,3450.8,3449.4,8.19554]
[1721403302128,3.0,3451.1,3449.9,2.89862]
[1721403302419,3.0,3451.3,3449.9,2.89862]
[1721403302631,3.0,3451.4,3450.0,0.289862]
[1721403302809,2.89751,3451.3,3450.0,0.289862]
[1721403302979,3.0,3451.2,3450.0,0.289862]
[1721403303186,2.89714,3451.7,3450.1,5.77964]
[1721403303421,6.57144641,3451.6,3450.1,6.0984882]
[1721403303629,2.89738,3451.4,3450.1,3.2000482]
[1721403303931,2.89738,3451.4,3450.2,0.60985882]
[1721403304220,2.8973,3451.5,3450.3,0.55]
[1721403304420,2.89743,3451.4,3450.3,0.55]
[1721403304727,2.89743,3451.4,3450.2,0.55]
[1721403305024,2.89743,3451.4,3450.2,1.15985882]
[1721403305207,5.23952,3451.6,3450.2,1.15985882]
[1721403305382,5.89729,3451.5,3450.2,1.15985882]
[1721403305787,2.89738,3451.4,3450.2,1.15985882]
[1721403306183,3.0,3451.5,3450.2,1.15985882]
[1721403306427,5.8973,3451.5,3450.3,0.6708307]
[1721403307013,2.3423,3451.6,3450.3,0.6708307]
[1721403307328,2.89705,3451.8,3450.3,0.6708307]
[1721403307511,5.89705,3451.8,3450.4,0.55]
[1721403307720,2.89721,3451.6,3450.5,0.75674207]
[1721403307889,2.89721,3451.6,3450.4,0.55]
[1721403308222,5.89704,3451.8,3450.4,0.55]
[1721403308428,5.89704,3451.8,3450.5,2.77495543]
[1721403308583,3.0,3451.8,3450.6,0.55]
[1721403308783,5.89697,3451.9,3450.6,0.55]
[1721403309025,5.89697,3451.9,3450.6,1.23361007]
[1721403309519,3.0,3451.9,3450.6,1.23361007]
[1721403309822,5.26104,3452.1,3450.6,4.13157007]
[1721403309823,5.8969,3452.0,3450.6,4.13157007]
[1721403310424,3.0,3452.0,3450.6,1.23361007]
[1721403310602,2.3642,3452.1,3450.3,0.6708307]
[1721403310603,2.89729,3451.5,3450.3,0.6708307]
[1721403311022,2.89712,3451.7,3450.3,0.6708307]
[1721403311183,2.89698,3451.9,3450.5,5.61512]
[1721403311391,3.0,3451.8,3450.5,5.61512]
[1721403311690,2.89679,3452.1,3450.9,2.717]
[1721403312203,2.89663,3452.3,3450.9,2.717]
[1721403312204,2.8969,3452.0,3450.9,2.717]
[1721403312388,2.89676,3452.2,3450.9,2.717]
[1721403312595,3.0,3452.1,3451.1,2.3574]
[1721403312808,2.89672,3452.2,3451.1,2.3574]
[1721403313009,3.0,3452.1,3451.1,2.3574]
[1721403313226,2.89654,3452.4,3451.2,0.50744]
[1721403313424,2.89643,3452.6,3451.2,0.50744]
[1721403313722,2.89643,3452.6,3451.3,0.55]
[1721403314222,2.89643,3452.6,3451.1,2.3574]
[1721403314223,2.89674,3452.2,3451.1,2.3574]
[1721403314423,2.89679,3452.1,3451.1,2.3574]
[1721403314989,2.89664,3452.3,3451.1,2.3574]
[1721403315289,6.7959915,3452.5,3451.1,2.3574]
[1721403315290,5.89671,3452.2,3451.2,0.23574]
[1721403315691,3.0,3452.2,3451.2,0.23574]
[1721403315894,3.19775928,3452.6,3451.3,2.4657]
[1721403316115,5.89645,3452.5,3451.3,2.4657]
[1721403316321,5.89629,3452.7,3451.3,2.4657]
[1721403316322,2.89637,3452.6,3451.3,2.4657]
[1721403316589,2.89646,3452.5,3451.4,0.270144]
[1721403316786,2.89629,3452.7,3451.3,2.4657]
[1721403316787,2.89687,3452.0,3451.3,2.4657]
[1721403317529,2.89672,3452.2,3451.3,2.4657]
[1721403317730,3.19943672,3452.4,3451.3,2.4657]
[1721403317908,0.30287672,3452.4,3451.3,2.4657]
[1721403318430,3.30287672,3452.4,3451.3,2.4657]
[1721403318631,3.30287672,3452.4,3451.4,0.24657]
[1721403318838,0.30287672,3452.4,3451.4,0.24657]
[1721403321534,0.30287672,3452.4,3451.5,0.05794062]
[1721403321797,0.30287672,3452.4,3451.8,2.2906]
[1721403322039,2.89593,3453.2,3451.9,0.05793202]
[1721403322222,2.89573,3453.4,3452.0,0.7962562]
[1721403322423,2.89555,3453.6,3452.1,2.717]
[1721403322622,2.89566,3453.5,3452.3,2.4866]
[1721403322811,2.89566,3453.5,3452.3,3.43126962]
[1721403323016,2.89555,3453.6,3452.3,3.43126962]
[1721403323194,2.89547,3453.7,3452.3,3.43126962]
[1721403323392,2.89536,3453.8,3452.3,3.43126962]
[1721403323393,2.89536,3453.8,3452.4,2.4866]
[1721403323958,0.30299384,3453.9,3452.6,2.4866]
[1721403324161,2.89503,3454.2,3452.7,0.52615235]
[1721403324318,6.65686128,3454.1,3452.6,2.4866]
[1721403324517,2.89568,3453.5,3452.6,2.4866]
[1721403324748,2.89578,3453.3,3452.6,2.4866]
[1721403325055,2.89568,3453.5,3452.6,2.4866]
[1721403325409,2.89545,3453.7,3452.6,2.4866]
[1721403325410,2.89572,3453.4,3452.6,2.4866]
[1721403325816,2.89528,3453.9,3452.6,2.73526]
[1721403326012,3.0,3453.8,3452.6,2.4866]
[1721403326252,2.8961,3453.0,3452.6,2.4866]
[1721403326609,2.89546,3453.7,3452.1,2.4612]
[1721403326610,2.89612,3452.9,3452.1,2.4612]
[1721403326813,2.89604,3453.0,3452.1,2.4612]
[1721403327255,3.0,3453.6,3452.1,2.4612]
[1721403327411,2.4902,3454.9,3452.1,2.4612]
[1721403327412,2.89531,3453.9,3452.4,2.4613]
[1721403327920,2.89517,3454.1,3452.4,2.4613]
[1721403328109,2.89566,3453.5,3452.4,2.4613]
[1721403328309,2.89554,3453.6,3452.4,2.4613]
[1721403328645,2.89553,3453.6,3452.4,2.4613]
[1721403328848,2.89538,3453.8,3452.5,0.24613]
[1721403329710,3.19785771,3454.4,3452.5,0.24613]
[1721403329711,0.30293771,3454.4,3453.2,2.4626]
[1721403330016,1.19934867,3454.7,3453.4,2.4626]
[1721403330017,2.8946,3454.7,3453.4,2.4626]
[1721403330371,5.33615,3455.2,3453.4,2.4626]
[1721403330372,2.89501,3454.3,3453.4,2.4626]
[1721403330519,6.0584115,3455.2,3453.4,2.4626]
[1721403330520,2.89487,3454.4,3453.4,2.4626]
[1721403330722,2.89477,3454.5,3453.4,2.70886]
[1721403330937,2.89445,3454.9,3453.4,2.70886]
[1721403331113,2.89436,3455.0,3453.6,2.89546]
[1721403331314,0.75716715,3455.4,3453.4,2.70886]
[1721403331315,2.89453,3454.8,3453.4,2.70886]
[1721403331535,0.75716715,3455.4,3453.4,2.70886]
[1721403331868,0.75716715,3455.4,3453.6,2.3065]
[1721403332070,1.24207955,3455.3,3453.9,2.3065]
[1721403332229,0.30149176,3455.3,3454.0,0.55]
[1721403332429,0.45434892,3455.4,3454.0,0.60682096]
[1721403332632,0.45434892,3455.4,3454.0,0.05682096]
[1721403332862,2.89451,3454.9,3454.0,0.05682096]
[1721403333389,2.89418,3455.3,3454.0,0.05682096]
[1721403333674,0.45434892,3455.4,3454.0,0.05682096]
[1721403333829,0.45434892,3455.4,3454.0,2.77382096]
[1721403334030,0.45434892,3455.4,3454.3,2.89493]
[1721403334239,0.45434892,3455.4,3455.0,2.89431]
[1721403334543,0.45434892,3455.4,3454.8,2.717]
[1721403334544,0.1505343,3456.3,3455.2,2.3529]
[1721403334870,0.1505343,3456.3,3455.3,0.05447847]
[1721403335232,2.89361,3455.9,3455.3,0.05447847]
[1721403335427,2.89361,3455.9,3455.2,2.3529]
[1721403335631,2.89387,3455.6,3454.6,2.4684]
[1721403335873,2.89399,3455.5,3455.3,0.05447847]
[1721403336076,2.89399,3455.5,3454.6,2.4684]
[1721403336304,2.89399,3455.5,3454.6,2.71524]
[1721403336496,2.89399,3455.5,3454.7,0.05450493]
[1721403336812,2.89402,3455.4,3454.7,0.05450493]
[1721403336955,2.89377,3455.7,3454.7,0.05450493]
[1721403337156,2.89352,3456.0,3454.8,5.1661]
[1721403337384,3.0,3456.2,3454.9,3.0503406]
[1721403337385,2.89342,3456.2,3454.9,3.0503406]
[1721403337720,0.1505343,3456.3,3454.9,2.50359611]
[1721403337885,2.89402,3455.4,3454.9,2.50359611]
[1721403338198,2.717,3456.1,3454.9,2.50359611]
[1721403338199,2.89419,3455.2,3454.9,0.05449611]
[1721403338351,2.717,3456.1,3454.9,0.05449611]
[1721403338352,2.89406,3455.4,3454.9,0.05449611]
[1721403338551,2.89406,3455.4,3454.3,2.2913]
[1721403338790,2.89386,3455.6,3454.4,0.28364817]
[1721403339097,2.89396,3455.5,3454.4,0.28364817]
[1721403339648,2.89408,3455.4,3454.4,0.28364817]
[1721403339867,2.89412,3455.3,3454.4,0.28364817]
[1721403340067,0.45382914,3455.3,3454.4,0.28364817]
[1721403340246,2.717,3456.1,3454.4,0.28364817]
[1721403340247,0.30124986,3456.6,3454.9,2.717]
[1721403340476,2.89318,3456.4,3455.0,2.3001]
[1721403340703,2.89352,3456.0,3455.0,2.35438173]
[1721403340849,2.89377,3455.7,3455.0,2.35438173]
[1721403341281,2.89387,3455.6,3455.0,2.35438173]
[1721403341486,2.89387,3455.6,3455.0,0.05428173]
[1721403341651,2.89424,3455.2,3455.0,0.05428173]
[1721403341853,2.89417,3455.3,3454.5,2.4716]
[1721403342055,2.89417,3455.3,3455.1,0.05427732]
[1721403342256,2.89393,3455.5,3455.1,0.05427732]
[1721403342470,2.89369,3455.8,3455.0,10.0]
[1721403342786,2.8941,3455.3,3455.1,0.05427732]
[1721403343185,2.8941,3455.3,3455.0,10.0]
[1721403343391,2.8941,3455.3,3455.2,0.05398889]
[1721403343604,2.8941,3455.3,3455.1,0.0539933]
[1721403343835,2.89401,3455.5,3455.2,0.05398889]
[1721403344042,2.89377,3455.7,3455.2,0.05398889]
[1721403344206,3.0,3455.6,3455.0,10.0]
[1721403344404,2.89344,3456.1,3455.3,0.05398069]
[1721403344709,0.1505343,3456.3,3455.0,11.0]
[1721403344892,0.1505343,3456.3,3455.1,2.4296]
[1721403345250,3.0438143,3456.3,3455.2,0.05399078]
[1721403345453,0.1505343,3456.3,3455.3,2.4225]
[1721403345593,0.1505343,3456.3,3455.5,2.4225]
[1721403345793,0.1505343,3456.3,3455.5,5.3164]
[1721403346098,0.1505343,3456.3,3455.7,2.4225]
[1721403346537,0.1505343,3456.3,3455.0,11.0]
[1721403346538,0.1505343,3456.3,3455.8,0.05389996]
[1721403347023,0.1505343,3456.3,3455.9,0.05378958]
[1721403347024,2.89351,3456.0,3455.9,0.05378958]
[1721403347393,2.89351,3456.0,3455.2,2.4611]
[1721403347865,2.89351,3456.0,3455.3,0.05381982]
[1721403348194,2.89336,3456.2,3455.3,0.05381982]
[1721403348195,2.89361,3455.9,3455.3,0.05381982]
[1721403348491,2.89369,3455.8,3455.3,0.05381982]
[1721403348692,2.89369,3455.8,3455.2,2.4611]
[1721403348693,2.89386,3455.6,3455.2,2.4611]
[1721403348922,2.89369,3455.8,3455.0,10.0]
[1721403349133,2.89392,3455.6,3455.0,10.0]
[1721403349339,2.89369,3455.8,3455.1,0.05385513]
[1721403349521,2.89352,3456.0,3455.1,0.05385513]
[1721403349825,2.89335,3456.2,3455.1,0.05385513]
[1721403350060,0.1505343,3456.3,3455.1,1.05924064]
[1721403350205,0.1505343,3456.3,3455.1,1.00538551]
[1721403350412,0.1505343,3456.3,3455.2,0.05379903]
[1721403351050,0.1505343,3456.3,3455.3,2.2592]
[1721403351429,0.1505343,3456.3,3455.4,0.05379021]
[1721403352324,2.89374,3455.8,3455.4,0.05379021]
[1721403352545,2.89374,3455.8,3455.0,10.0]
[1721403352867,2.89353,3456.0,3455.1,0.05380344]
[1721403353152,0.1505343,3456.3,3455.1,0.05380344]
[1721403353354,2.89352,3456.0,3455.1,0.05380344]
[1721403353852,3.0438043,3456.3,3455.1,0.05380344]
[1721403353853,2.89362,3455.9,3455.1,0.05380344]
[1721403354009,2.89379,3455.7,3455.1,0.05380344]
[1721403354211,2.89345,3456.1,3455.1,0.05380344]
[1721403354527,2.89352,3456.0,3455.1,0.05380344]
[1721403354945,2.89335,3456.2,3455.1,0.05380344]
[1721403355128,3.0438143,3456.3,3455.1,0.05380344]
[1721403355323,3.0,3456.2,3455.1,0.05380344]
[1721403355546,2.89347,3456.1,3455.1,0.05380344]
[1721403355876,3.0438143,3456.3,3455.1,0.05380344]
[1721403355877,0.1505343,3456.3,3455.3,2.4691]
[1721403356173,0.1505343,3456.3,3455.4,2.52290157]
[1721403356376,0.1505343,3456.3,3455.5,3.0191]
[1721403356690,0.1505343,3456.3,3455.6,2.89379]
[1721403356845,0.1505343,3456.3,3455.7,0.88607016]
[1721403357249,0.1505343,3456.3,3455.5,2.4691]
[1721403357250,0.1505343,3456.3,3455.8,0.05374608]
[1721403357781,0.1505343,3456.3,3455.9,0.05373788]
[1721403358139,0.1505343,3456.3,3455.5,2.4691]
[1721403358482,0.1505343,3456.3,3455.8,2.89368]
[1721403358840,0.1505343,3456.3,3455.9,0.05367165]
[1721403359352,0.1505343,3456.3,3456.0,0.05366724]
[1721403359571,0.1505343,3456.3,3455.7,2.89373]
[1721403359572,0.1505343,3456.3,3455.5,2.4691]
[1721403359738,0.1505343,3456.3,3455.6,0.30057596]
[1721403359938,0.1505343,3456.3,3455.6,0.05366596]
[1721403361441,0.1505343,3456.3,3455.6,2.94750596]
[1721403361826,0.1505343,3456.3,3455.8,2.89366]
[1721403361995,0.1505343,3456.3,3455.7,0.55]
[1721403361996,0.1505343,3456.3,3455.7,3.44376]
[1721403362277,0.1505343,3456.3,3456.0,2.8935]
[1721403362491,0.1505343,3456.3,3456.2,5.7867]
[1721403362696,0.1505343,3456.3,3456.2,6.39455245]
[1721403362843,0.1505343,3456.3,3456.2,8.85529196]
[1721403363062,0.1505343,3456.3,3456.2,11.79743951]
[1721403363238,7.49,3457.8,3456.6,2.89294]
[1721403363445,0.30261569,3458.1,3456.9,5.3665]
[1721403363645,2.89143,3458.5,3456.9,5.42434711]
[1721403363646,2.89165,3458.3,3456.9,5.42434711]
[1721403363876,2.89165,3458.3,3457.0,0.05360425]
[1721403364251,3.64581341,3458.4,3457.0,0.05360425]
[1721403364481,0.75430341,3458.4,3457.0,0.05360425]
[1721403364680,0.75430341,3458.4,3457.1,0.25274043]
[1721403364887,0.75430341,3458.4,3457.3,2.4809]
[1721403365392,0.75430341,3458.4,3457.4,0.05336534]
[1721403365762,0.4535046,3458.4,3457.4,2.94564534]
[1721403366372,3.3450746,3458.4,3457.4,0.05336534]
[1721403366982,0.4535046,3458.4,3457.4,0.33206592]
[1721403368344,0.4535046,3458.4,3457.4,3.22439592]
[1721403368551,0.4535046,3458.4,3457.5,2.89221]
[1721403368765,3.0,3459.0,3457.6,2.94502823]
[1721403369299,0.45340445,3458.9,3457.7,0.05783462]
[1721403369582,0.45340445,3458.9,3457.6,2.94502823]
[1721403369583,0.45340445,3458.9,3458.1,2.89173]
[1721403369883,3.0410143,3459.7,3458.2,2.32]
[1721403369884,2.89058,3459.6,3458.2,2.32]
[1721403370185,0.1505343,3459.7,3458.3,0.05782593]
[1721403370186,2.89059,3459.5,3458.3,0.05782593]
[1721403370605,2.89059,3459.5,3458.4,0.05281253]
[1721403370889,3.79497941,3459.7,3458.4,0.57926978]
[1721403370890,0.90455941,3459.7,3458.4,0.57926978]
[1721403371094,2.8906,3459.5,3458.4,0.05281253]
[1721403371249,3.79497941,3459.7,3458.4,0.05281253]
[1721403371448,3.79497941,3459.7,3458.6,2.3726]
[1721403371449,0.90455941,3459.7,3458.6,2.3726]
[1721403371643,0.60388001,3459.7,3458.6,2.3726]
[1721403371843,0.60388001,3459.7,3458.7,0.58442766]
[1721403372073,0.60388001,3459.7,3458.8,0.05781906]
[1721403372283,0.1505343,3459.7,3458.8,0.05781906]
[1721403372485,0.1505343,3459.7,3458.9,0.05273761]
[1721403372860,0.1505343,3459.7,3459.2,2.89083]
[1721403373057,0.1505343,3459.7,3459.3,3.149983]
[1721403373283,0.1505343,3459.7,3459.3,3.20261232]
[1721403373795,0.1505343,3459.7,3459.3,6.09336232]
[1721403374296,0.1505343,3459.7,3459.4,2.89066]
[1721403374795,0.1505343,3459.7,3459.5,0.05251854]
[1721403374949,0.1505343,3459.7,3459.6,0.60931515]
[1721403375156,0.1505343,3459.7,3459.6,0.66172544]
[1721403375852,0.1505343,3459.7,3459.6,0.05241029]
[1721403376275,0.1505343,3459.7,3458.8,2.4247]
[1721403376797,0.1505343,3459.7,3458.9,0.04840577]
[1721403378491,3.0409643,3459.7,3458.9,0.04840577]
[1721403378693,2.89068,3459.4,3458.9,0.04840577]
[1721403379196,2.89086,3459.2,3458.2,2.3722]
[1721403379498,2.89076,3459.3,3458.3,0.23722]
[1721403379703,2.89076,3459.3,3458.3,0.28565219]
[1721403379854,0.1505343,3459.7,3458.3,0.28565219]
[1721403380051,2.89103,3459.0,3458.3,0.28565219]
[1721403380256,2.89103,3459.0,3458.3,0.23722]
[1721403380499,2.89161,3458.3,3457.6,2.3693]
[1721403380692,2.89147,3458.5,3457.6,2.3693]
[1721403380908,2.89152,3458.4,3457.7,0.04861679]
[1721403381064,2.89177,3458.1,3457.7,0.04861679]
[1721403381261,3.0,3458.9,3457.6,2.3693]
[1721403381262,2.89184,3458.0,3457.6,2.3693]
[1721403381467,2.89184,3458.0,3456.8,2.2778]
[1721403381701,2.89184,3458.0,3456.9,1.05431674]
[1721403381867,3.0,3458.9,3456.9,0.04865203]
[1721403381868,2.89119,3458.8,3456.9,0.04865203]
[1721403382194,2.89173,3458.2,3456.8,2.2778]
[1721403382568,2.89159,3458.3,3456.9,0.04865203]
[1721403382774,2.89185,3458.0,3456.9,0.04865203]
[1721403383200,2.89194,3457.9,3456.9,0.04865203]
[1721403383402,2.89209,3457.7,3456.9,0.04865203]
[1721403383613,2.89193,3457.9,3456.9,0.04865203]
[1721403383614,2.89218,3457.6,3456.9,0.28129723]
[1721403383906,7.59127,3458.7,3455.8,2.3278]
[1721403383907,2.89261,3457.1,3455.8,2.3278]
[1721403384069,2.89283,3456.9,3455.8,2.3278]
[1721403384408,2.89224,3457.6,3455.8,2.3278]
[1721403384409,2.89302,3456.6,3455.9,0.04869611]
[1721403384620,2.89302,3456.6,3455.8,2.3278]
[1721403384786,2.89302,3456.6,3455.8,2.56058]
[1721403384995,2.89302,3456.6,3455.9,0.04708718]
[1721403385395,2.89202,3456.6,3455.9,0.04708718]
[1721403386500,2.89261,3457.1,3455.9,0.04708718]
[1721403386717,3.614,3456.9,3455.9,0.04708718]
[1721403386885,2.89351,3456.0,3455.2,2.2862]
[1721403387216,2.89362,3455.9,3455.2,3.69065674]
[1721403387512,2.89335,3456.2,3455.3,0.04666881]
[1721403387673,2.89327,3456.3,3455.3,0.04666881]
[1721403387871,2.89293,3456.7,3455.4,0.37373256]
[1721403388205,2.89293,3456.7,3455.5,0.05787216]
[1721403388357,2.89303,3456.6,3455.5,0.05787216]
[1721403388570,3.0,3456.8,3455.5,0.05787082]
[1721403388711,3.614,3457.4,3455.6,0.04672161]
[1721403388712,2.89296,3456.7,3455.6,0.04672161]
[1721403389052,2.89284,3456.9,3455.6,0.67817603]
[1721403389353,2.89318,3456.4,3455.6,0.67817603]
[1721403389565,2.89265,3457.1,3455.6,0.67817603]
[1721403389851,3.614,3457.4,3455.6,0.67817603]
[1721403389852,2.89314,3456.5,3455.6,0.67817603]
[1721403390408,0.30086088,3456.8,3455.6,0.04672161]
[1721403390628,2.89358,3456.0,3455.6,0.04672161]
[1721403391024,2.89358,3456.0,3455.2,3.69065674]
[1721403391255,2.89319,3456.4,3455.7,0.0466889]
[1721403391453,5.89294,3456.7,3455.2,3.69065674]
[1721403391454,3.0,3456.7,3455.2,3.69065674]
[1721403391763,2.89311,3456.5,3455.8,0.0466845]
[1721403391971,2.89311,3456.5,3455.3,1.36906567]
[1721403392136,0.30086088,3456.8,3455.9,0.04668009]
[1721403392462,0.30086088,3456.8,3455.4,2.95187796]
[1721403392665,0.30086088,3456.8,3456.0,0.04667568]
[1721403392850,0.30086088,3456.8,3455.3,1.36906567]
[1721403392851,2.89303,3456.6,3455.3,4.36906567]
[1721403393223,2.89303,3456.6,3455.4,1.25495257]
[1721403393341,2.89311,3456.5,3455.4,4.3016547]
[1721403393666,3.19377088,3456.8,3455.4,1.3016547]
[1721403393667,2.89293,3456.7,3455.4,1.3016547]
[1721403393845,2.89293,3456.7,3455.4,0.04670213]
[1721403394162,2.89335,3456.2,3455.4,0.04670213]
[1721403394365,2.89364,3455.9,3455.4,0.04670213]
[1721403394670,2.89364,3455.9,3455.2,2.2862]
[1721403394671,3.0,3456.7,3455.2,2.2862]
[1721403394832,2.89352,3456.0,3455.5,0.04669772]
[1721403395028,2.89352,3456.0,3455.2,2.2862]
[1721403395228,2.89352,3456.0,3455.6,0.04669331]
[1721403395452,0.30101887,3456.6,3455.2,3.51482]
[1721403395453,2.89363,3455.9,3455.2,3.51482]
[1721403395664,0.30101887,3456.6,3455.7,0.0466889]
[1721403395665,2.89351,3456.0,3455.7,0.0466889]
[1721403395869,2.8933,3456.3,3455.2,2.2862]
[1721403396076,2.89383,3455.7,3455.2,2.2862]
[1721403396364,2.89369,3455.8,3455.2,2.2862]
[1721403396869,3.0,3456.2,3455.2,2.2862]
[1721403396870,5.89337,3456.2,3455.2,3.51482]
[1721403397177,3.19405887,3456.6,3455.3,0.05787902]
[1721403397484,2.89294,3456.7,3455.3,2.89409]
[1721403397631,2.89302,3456.6,3455.4,0.6466809]
[1721403398232,3.614,3457.3,3455.4,0.6466809]
[1721403398430,2.00263046,3457.5,3455.2,3.51482]
[1721403398431,3.614,3456.8,3455.2,3.51482]
[1721403398629,2.89312,3456.5,3455.2,2.2862]
[1721403398834,2.89367,3455.9,3455.2,2.2862]
[1721403399033,2.89376,3455.8,3455.2,2.2862]
[1721403399265,2.89345,3456.1,3455.2,2.2862]
[1721403399266,2.89361,3455.9,3455.2,2.2862]
[1721403399495,2.89377,3455.7,3455.2,2.2862]
[1721403399640,5.89312,3456.5,3455.2,2.2862]
[1721403399641,2.89368,3455.8,3455.2,2.2862]
[1721403400368,2.89386,3455.6,3455.2,2.2862]
[1721403400571,2.89395,3455.5,3455.2,2.2862]
[1721403401075,2.89368,3455.8,3455.2,2.2862]
[1721403402294,2.89331,3456.3,3455.2,2.2862]
[1721403402295,2.89378,3455.7,3455.2,2.2862]
[1721403403662,2.89386,3455.6,3455.2,2.2862]
[1721403404399,2.89394,3455.5,3455.0,10.0]
[1721403405138,2.89378,3455.7,3455.0,11.2376]
[1721403405341,2.89344,3456.1,3455.0,11.2376]
[1721403405741,2.8936,3455.9,3455.0,11.2376]
[1721403405945,5.89306,3456.6,3455.0,11.2376]
[1721403405946,2.89338,3456.2,3455.0,11.2376]
[1721403406146,2.89344,3456.1,3455.1,0.04707455]
[1721403406472,2.89368,3455.8,3455.2,1.12846746]
[1721403406674,2.89314,3456.5,3455.1,0.04707455]
[1721403406675,2.89376,3455.7,3455.1,0.04707455]
[1721403406891,2.89402,3455.4,3455.3,0.04706007]
[1721403407181,2.89402,3455.4,3455.0,10.0]
[1721403407182,2.89415,3455.3,3455.0,10.0]
[1721403408191,2.89427,3455.1,3455.0,10.0]
[1721403408963,5.78854,3455.1,3455.0,10.0]
[1721403409163,8.68281,3455.1,3455.0,10.0]
[1721403409387,6.08970484,3455.1,3455.0,10.0]
[1721403411272,2.89486,3454.4,3453.7,2.4611]
[1721403411518,2.89486,3454.4,3453.8,0.24611]
[1721403412403,2.89486,3454.4,3453.7,2.4611]
[1721403412899,2.89486,3454.4,3453.8,0.04102675]
[1721403413103,2.89486,3454.4,3453.7,2.4611]
[1721403413607,2.89486,3454.4,3453.8,0.04128735]
[1721403413810,2.89512,3454.1,3453.8,0.04128735]
[1721403414004,2.89512,3454.1,3453.3,2.3618]
[1721403414502,2.89512,3454.1,3453.4,0.04132579]
[1721403414868,2.89512,3454.1,3453.5,0.24031258]
[1721403415324,2.89512,3454.1,3453.6,0.04131696]
[1721403415806,2.89495,3454.3,3453.5,0.24031258]
[1721403416018,2.89503,3454.2,3453.5,0.24031258]
[1721403416217,2.89503,3454.2,3453.6,0.04132641]
[1721403416391,2.89503,3454.2,3453.5,0.24031258]
[1721403416714,2.89492,3454.4,3453.6,0.04132641]
[1721403416879,2.89494,3454.3,3453.6,0.04132641]
[1721403417085,2.8948,3454.5,3453.6,0.04132641]
[1721403417086,2.89478,3454.5,3453.6,0.04132641]
[1721403417283,2.89478,3454.5,3453.5,0.24031258]
[1721403417582,2.89477,3454.5,3453.5,0.24031258]
[1721403417820,3.30116484,3455.1,3453.6,0.04134341]
[1721403417821,2.89446,3454.9,3453.6,0.04134341]
[1721403418117,3.19543484,3455.1,3453.7,5.25523]
[1721403418295,0.30116484,3455.1,3453.8,0.5536886]
[1721403418524,0.30116484,3455.1,3453.8,0.59497973]
[1721403418525,2.89454,3454.8,3453.8,0.59497973]
[1721403418719,2.89454,3454.8,3453.8,0.04129113]
[1721403419350,2.89436,3455.0,3453.8,0.04129113]
[1721403420018,2.89421,3455.2,3453.8,0.04129113]
[1721403420220,0.30279007,3455.8,3453.8,0.04129113]
[1721403420421,2.89449,3454.9,3453.8,3.04129113]
[1721403420644,2.89432,3455.1,3453.9,0.54010911]
[1721403420845,0.30279007,3455.8,3453.9,0.54010911]
[1721403420846,2.89416,3455.3,3453.9,3.43537911]
[1721403421033,2.89416,3455.3,3454.0,0.04141639]
[1721403421238,2.89428,3455.1,3454.0,0.04141639]
[1721403421545,2.8941,3455.3,3454.0,0.04141639]
[1721403421752,3.0,3455.7,3454.1,5.95710355]
[1721403421753,2.89386,3455.6,3454.1,5.95710355]
[1721403422045,3.0,3455.7,3454.1,5.95710355]
[1721403422046,5.89396,3455.5,3454.1,3.10342886]
[1721403422209,2.89432,3455.1,3454.1,3.10342886]
[1721403422410,3.0,3455.7,3454.1,3.10342886]
[1721403422611,2.89446,3454.9,3454.1,2.45575531]
[1721403422830,5.26195,3455.6,3454.1,2.45575531]
[1721403422831,2.89453,3454.8,3454.1,2.45575531]
[1721403423113,2.8946,3454.7,3454.1,2.45575531]
[1721403423308,2.89434,3455.1,3454.1,0.04135531]
[1721403423528,5.89406,3455.4,3453.6,2.4144]
[1721403423529,2.89485,3454.5,3453.6,2.4144]
[1721403423764,2.89494,3454.3,3454.2,0.04132446]
[1721403424061,2.89503,3454.2,3453.6,2.4144]
[1721403424273,2.89512,3454.1,3453.6,2.4144]
[1721403424561,2.89522,3454.0,3453.6,2.4144]